fUST/lending_fUST_20251101
["ID","MTS","AMOUNT","RATE_DAILY","PERIOD"]
[392825684,1762005606582,500.0,0.00025205,2]
[392825685,1762005606951,500.0,0.00025205,2]
[392825686,1762005607687,500.0,0.00025205,2]
[392825687,1762005607912,500.0,0.00025205,2]
[392825688,1762005608275,500.0,0.00025205,2]
[392825689,1762005608623,500.0,0.00025205,2]
[392825690,1762005608994,500.0,0.00025205,2]
[392825691,1762005609394,500.0,0.00025205,2]
[392825692,1762005609785,500.0,0.00025205,2]
[392825693,1762005610157,451.46084121,0.00025205,2]
[392825741,1762005807602,169.104945,0.00019105,2]
[392825749,1762005884654,278.27470303,0.00038198,20]
[392825751,1762005897484,316.76145308,0.00038198,20]
[392826277,1762006188536,578.27,0.00038198,20]
[392826417,1762006232228,-351.49724853,0.0002589,2]
[392826428,1762006232328,-12.58179174,0.0002589,2]
[392826430,1762006232337,-389.14671923,0.0002779,2]
[392826443,1762006232448,-429.61326752,0.0002789,2]
[392826445,1762006232458,-300.0,0.00029026,2]
[392826447,1762006232472,-300.0,0.00029027,2]
[392826449,1762006232481,-300.0,0.00029027,2]
[392826451,1762006232491,-1200.0,0.00029027,2]
[392826453,1762006232500,-262.86226385,0.00029028,2]
[392826455,1762006232511,-525.33230647,0.00029028,2]
[392826456,1762006232520,-367.8300119,0.00029028,2]
[392826458,1762006232530,-367.8300119,0.00029028,2]
[392826460,1762006232539,-367.8300119,0.00029028,2]
[392826461,1762006232550,-495.14749477,0.0002989,2]
[392826463,1762006232559,-160.0,0.0003,10]
[392826465,1762006232570,-160.14609718,0.00030177,2]
[392826468,1762006232581,-767.0,0.00030177,2]
[392826470,1762006232594,-160.14609718,0.00031765,30]
[392826472,1762006232604,-525.33230647,0.00031787,3]
[392826474,1762006232615,-560.68172202,0.0003189,2]
[392826476,1762006232625,-156.410416,0.0003245,20]
[392826478,1762006232634,-403.98447456,0.00032757,2]
[392826479,1762006232644,-626.21594927,0.0003389,120]
[392826481,1762006232654,-262.86226385,0.00034547,4]
[392826483,1762006232664,-212.32436969,0.00034547,4]
[392826485,1762006232674,-301.19923336,0.00034703,2]
[392826487,1762006232684,-7.16565615,0.00035,120]
[392826490,1762006232699,-145.83434385,0.00035,120]
[392826492,1762006232709,-691.75017652,0.0003589,120]
[392826494,1762006232723,-153.0,0.000373,120]
[392826496,1762006232734,-351.74707463,0.00037847,2]
[392826498,1762006232745,-560.16633354,0.00037847,2]
[392826500,1762006232757,-8249.27671983,0.00037847,2]
[392826502,1762006232768,-757.28440377,0.0003789,120]
[392826504,1762006232779,-369.67,0.00038098,20]
[392826506,1762006232789,-2559.05658492,0.00038198,20]
[392826508,1762006232799,-153.0,0.000397,120]
[392826510,1762006232809,-301.19923336,0.0003985,3]
[392826512,1762006232820,-822.81863102,0.0003989,120]
[392826514,1762006232829,-263.12512612,0.00040066,7]
[392826516,1762006232840,-888.35285827,0.0004189,120]
[392826518,1762006232850,-153.0,0.00042,120]
[392826520,1762006232859,-207.80373997,0.00043836,2]
[392826522,1762006232869,-593.104682,0.0004389,120]
[392826655,1762006238392,-360.78240352,0.0004389,120]
[392826656,1762006238401,-500.0,0.00043989,120]
[392826657,1762006238410,-500.0,0.00043989,2]
[392826658,1762006238420,-500.0,0.00043989,120]
[392826659,1762006238429,-500.0,0.00043989,120]
[392826660,1762006238438,-2574.81285222,0.0004399,2]
[392826661,1762006238448,-1329.10502123,0.00044209,2]
[392826662,1762006238458,-153.0,0.000443,120]
[392826663,1762006238468,-887.44,0.0004439,10]
[392826664,1762006238483,-12365.11119053,0.000444,2]
[392826665,1762006238498,-306.017431,0.000444,2]
[392826701,1762006240493,-158.78,0.0004439,10]
[392826702,1762006240502,-3117.03187679,0.000444,2]
[392826707,1762006243361,-129773.92611292,0.000444,2]
[392826726,1762006289548,412.55201611,0.00038198,120]
[392826727,1762006300364,518.66,0.00032877,120]
[392826733,1762006348291,328.903272,0.00013699,2]
[392826734,1762006348483,328.903272,0.00020187,2]
[392826737,1762006360663,518.0,0.00032877,120]
[392826837,1762006492993,265.89981135,0.00032876,120]
[392826840,1762006588784,160.0,0.000255,5]
[392826841,1762006589465,160.0,0.000255,5]
[392826845,1762006738637,5000.0,0.000255,3]
[392826847,1762006746780,174.0,0.000328,120]
[392826848,1762006747393,174.0,0.000328,120]
[392826849,1762006760936,5000.0,0.000255,3]
[392826850,1762006783647,2812.81971558,0.000255,3]
[392826862,1762006975784,1391.63766979,0.00025206,2]
[392826863,1762006975807,421.77362167,0.00025206,2]
[392826864,1762006991480,390.54310535,0.00025206,2]
[392826894,1762007262099,309.52141623,0.0002876,120]
[392826895,1762007289982,188.0,0.0002,120]
[392826897,1762007303151,322.03491677,0.0003,120]
[392826898,1762007304044,153.61174146,0.00038203,30]
[392826899,1762007305734,370.21683732,0.00025,120]
[392826900,1762007305878,493.90380827,0.00025,120]
[392826901,1762007307185,325.16962237,0.00028,120]
[392826902,1762007307251,188.90571407,0.00028,120]
[392826904,1762007307410,363.67010657,0.0003,120]
[392826906,1762007309226,208.41136974,0.00027,120]
[392826907,1762007311074,183.02214511,0.00038203,30]
[392826908,1762007311816,351.18368157,0.00028767,120]
[392826909,1762007312104,265.45323242,0.00025,120]
[392826910,1762007312138,295.06837309,0.00027397,120]
[392826911,1762007312499,225.41382608,0.0001536,120]
[392826912,1762007313518,166.589999,0.00038203,30]
[392826913,1762007314200,381.75464594,0.00038203,120]
[392826914,1762007314250,410.00004192,0.0003,120]
[392826915,1762007314917,399.16837528,0.00026,120]
[392826916,1762007315079,432.2554125,0.00025,120]
[392826917,1762007315192,9187.69327298,0.00025,2]
[392826918,1762007315215,10000.01,0.00025,2]
[392826919,1762007315237,10000.01,0.00025,2]
[392826920,1762007315259,10000.01,0.00025,2]
[392826921,1762007315289,99423.93143505,0.00025,2]
[392826922,1762007315312,25000.0,0.00025,2]
[392826923,1762007315344,324.79873056,0.0003013,120]
[392826924,1762007316299,420.89872531,0.00022372,120]
[392826925,1762007317174,284.42978421,0.00028,120]
[392826926,1762007317285,211.05771468,0.00026,120]
[392826927,1762007318178,-423.53478194,0.00025,2]
[392826928,1762007318270,258.95062859,0.0003,120]
[392826929,1762007318864,-6674.62698012,0.00025,2]
[392826930,1762007321461,-173.84668816,0.00025,2]
[392826931,1762007324149,-10000.01,0.00025,2]
[392826932,1762007324303,-10000.01,0.00025,2]
[392826933,1762007324419,-10000.01,0.00025,2]
[392826934,1762007324538,-10000.01,0.00025,2]
[392826935,1762007324672,-10000.01,0.00025,2]
[392826936,1762007324792,-10000.01,0.00025,2]
[392826937,1762007324924,-10000.01,0.00025,2]
[392826938,1762007325064,-10000.01,0.00025,2]
[392826939,1762007325213,-10000.01,0.00025,2]
[392826940,1762007325261,-391.16952231,0.00025,2]
[392826941,1762007326810,-793.95,0.0002499,10]
[392826942,1762007326831,-63.11210125,0.00025,2]
[392826943,1762007328401,-315.85974669,0.00025,2]
[392826944,1762007330247,-5000.0,0.0002475,2]
[392826945,1762007330294,-0.01,0.00025,2]
[392826946,1762007330340,-10000.01,0.00025,2]
[392826947,1762007330447,-10000.01,0.00025,2]
[392826948,1762007330573,-10000.01,0.00025,2]
[392826949,1762007330837,-10000.01,0.00025,2]
[392826950,1762007330950,-10000.01,0.00025,2]
[392826951,1762007331057,-10000.01,0.00025,2]
[392826952,1762007331189,-10000.01,0.00025,2]
[392826953,1762007331325,-10000.01,0.00025,2]
[392826954,1762007331445,-10000.01,0.00025,2]
[392826955,1762007335593,-219.40936407,0.00025,2]
[392826956,1762007337942,-590.11274552,0.00025,2]
[392826958,1762007342170,-358.29347922,0.00025,2]
[392826959,1762007342420,-10000.01,0.00025,2]
[392826960,1762007342550,-10000.01,0.00025,2]
[392826961,1762007342674,-10000.01,0.00025,2]
[392826962,1762007342803,-10000.01,0.00025,2]
[392826963,1762007342921,-10000.01,0.00025,2]
[392826964,1762007343047,-10000.01,0.00025,2]
[392826965,1762007343219,-10000.01,0.00025,2]
[392826966,1762007343334,-10000.01,0.00025,2]
[392826967,1762007343452,-10000.01,0.00025,2]
[392826968,1762007343558,-10000.01,0.00025,2]
[392826969,1762007344336,-508.90833633,0.00025,2]
[392826970,1762007345915,-508.90833633,0.0002475,2]
[392826971,1762007351598,-4491.09166367,0.0002475,2]
[392826972,1762007351634,-1017.82667266,0.0002499,2]
[392826973,1762007351749,-3679.14302305,0.0002499,2]
[392826974,1762007351785,-2641.7239539,0.00025,2]
[392826975,1762007351976,-10000.01,0.00025,2]
[392826976,1762007352201,-10000.01,0.00025,2]
[392826977,1762007352321,-10000.01,0.00025,2]
[392826978,1762007352466,-10000.01,0.00025,2]
[392826979,1762007352617,-10000.01,0.00025,2]
[392826980,1762007352758,-10000.01,0.00025,2]
[392826981,1762007352873,-10000.01,0.00025,2]
[392826982,1762007352923,-531.00000003,0.00025,2]
[392826983,1762007352995,-10000.01,0.00025,2]
[392826984,1762007354592,-5000.0,0.00024503,2]
[392826985,1762007354630,-0.01,0.00025,2]
[392826986,1762007354891,-10000.01,0.00025,2]
[392826987,1762007355064,-10000.01,0.00025,2]
[392826988,1762007355105,-391.08166367,0.00025,2]
[392826989,1762007355197,-10000.01,0.00025,2]
[392826990,1762007358628,-600.00000003,0.00025,2]
[392826991,1762007360874,-595.38233681,0.000249,2]
[392826992,1762007373333,321.76,0.00038203,20]
[392826993,1762007376957,-726.56210463,0.00024404,2]
[392826994,1762007381798,-290.88548872,0.00024404,2]
[392826995,1762007383494,-494.60671324,0.00024404,2]
[392826996,1762007384616,226.38973376,0.00024,2]
[392826997,1762007387382,-351.00032826,0.00024404,2]
[392826998,1762007390458,-549.74385111,0.00024404,2]
[392826999,1762007392301,-472.13667065,0.00024404,2]
[392827002,1762007408089,-176.33384356,0.00024404,2]
[392827003,1762007410335,-395.69972237,0.00024404,2]
[392827004,1762007415202,-173.38224351,0.00024403,2]
[392827005,1762007416941,-200.0,0.00024403,2]
[392827006,1762007421098,-395.69972237,0.00024403,2]
[392827007,1762007422726,-207.5258462,0.00024403,2]
[392827008,1762007427298,-200.0,0.00024403,2]
[392827009,1762007430279,-23.39218792,0.00024403,2]
[392827010,1762007430301,-348.69393397,0.00024404,2]
[392827073,1762007432477,-245.5630041,0.000244,2]
[392827074,1762007432489,-54.4369959,0.000244,2]
[392827075,1762007432498,-1194.33734349,0.00024404,2]
[392827076,1762007432508,-2807.24539464,0.00024404,2]
[392827077,1762007432517,-436.0,0.00024404,2]
[392827078,1762007432527,-269.0,0.00024526,2]
[392827079,1762007432536,-245.85480646,0.00024528,2]
[392827081,1762007432545,-1869.22945725,0.00024651,2]
[392827083,1762007432556,-3130.77054275,0.00024651,2]
[392827085,1762007432566,-68.40262187,0.000249,2]
[392827086,1762007432575,-10276.61620373,0.000249,2]
[392827087,1762007432584,-500.0,0.00024973,2]
[392827088,1762007432592,-197.6386641,0.00024973,2]
[392827089,1762007432601,-50000.0,0.00024973,2]
[392827090,1762007432610,-258.36147365,0.00024999,2]
[392827091,1762007432619,-76606.47785211,0.00025,2]
[392827092,1762007432630,-3817.55249059,0.00025,2]
[392827093,1762007434380,5000.0,0.00024,2]
[392827094,1762007436659,160.0,0.00025523,120]
[392827095,1762007438143,160.0,0.00026799,120]
[392827103,1762007438495,-387.33544453,0.00024972,2]
[392827104,1762007438505,-614.22396037,0.00024972,2]
[392827105,1762007438515,-500.0,0.00024972,2]
[392827106,1762007438524,-500.0,0.00024972,2]
[392827107,1762007438534,-500.0,0.00024972,2]
[392827108,1762007438543,-500.0,0.00024972,2]
[392827109,1762007438554,-557.17746053,0.00024972,2]
[392827110,1762007438563,-500.0,0.00024972,2]
[392827111,1762007438573,-500.0,0.00024972,2]
[392827112,1762007438583,-500.0,0.00024972,2]
[392827113,1762007438592,-500.0,0.00024972,2]
[392827114,1762007438602,-169.69809853,0.00024972,2]
[392827115,1762007438611,-500.0,0.00024972,2]
[392827116,1762007438620,-500.0,0.00024972,2]
[392827117,1762007438630,-500.0,0.00024972,2]
[392827118,1762007438639,-500.0,0.00024972,2]
[392827119,1762007438648,-500.0,0.00024972,2]
[392827120,1762007438661,-500.0,0.00024972,2]
[392827121,1762007438671,-500.0,0.00024972,2]
[392827122,1762007438680,-500.0,0.00024972,2]
[392827123,1762007438690,-500.0,0.00024972,2]
[392827124,1762007438699,-500.0,0.00024972,2]
[392827125,1762007438708,-500.0,0.00024972,2]
[392827126,1762007438718,-500.0,0.00024972,2]
[392827127,1762007438728,-500.0,0.00024972,2]
[392827128,1762007438738,-500.0,0.00024972,2]
[392827129,1762007438747,-500.0,0.00024972,2]
[392827130,1762007438757,-567.27661778,0.00024972,2]
[392827131,1762007438766,-500.0,0.00024972,2]
[392827132,1762007438775,-500.0,0.00024972,2]
[392827133,1762007438785,-500.0,0.00024972,2]
[392827134,1762007438794,-190.03724767,0.00024972,2]
[392827135,1762007438803,-500.0,0.00024972,2]
[392827136,1762007438812,-500.0,0.00024972,2]
[392827137,1762007438824,-91.07459145,0.00024972,2]
[392827138,1762007438836,-408.92540855,0.00024972,2]
[392827139,1762007438846,-500.0,0.00024972,2]
[392827140,1762007438856,-93.3067782,0.00024972,2]
[392827141,1762007438868,-406.6932218,0.00024972,2]
[392827142,1762007438878,-500.0,0.00024972,2]
[392827143,1762007438888,-500.0,0.00024972,2]
[392827144,1762007438898,-500.0,0.00024972,2]
[392827145,1762007438908,-500.0,0.00024972,2]
[392827146,1762007438918,-10.5418332,0.00024972,2]
[392827147,1762007438931,-247.76276429,0.00024972,2]
[392827148,1762007438940,-500.0,0.00024972,2]
[392827149,1762007438950,-500.0,0.00024972,2]
[392827150,1762007438960,-318.91815185,0.00024972,2]
[392827151,1762007438972,-214.52830493,0.00024972,2]
[392827152,1762007438982,-500.0,0.00024972,2]
[392827153,1762007438992,-500.0,0.00024972,2]
[392827154,1762007439002,-500.0,0.00024972,2]
[392827155,1762007439011,-500.0,0.00024972,2]
[392827156,1762007439021,-500.0,0.00024972,2]
[392827157,1762007439031,-500.0,0.00024972,2]
[392827158,1762007439040,-500.0,0.00024972,2]
[392827159,1762007439050,-500.0,0.00024972,2]
[392827160,1762007439059,-500.0,0.00024972,2]
[392827161,1762007439069,-500.0,0.00024972,2]
[392827162,1762007439080,-500.0,0.00024972,2]
[392827163,1762007439089,-500.0,0.00024972,2]
[392827164,1762007439099,-500.0,0.00024972,2]
[392827165,1762007439109,-500.0,0.00024972,2]
[392827166,1762007439118,-198.27434748,0.00024972,2]
[392827172,1762007439521,160.0,0.00028139,120]
[392827212,1762007440831,-3e-08,0.00024972,2]
[392827213,1762007440842,-301.72565249,0.00024972,2]
[392827214,1762007440853,-500.0,0.00024972,2]
[392827215,1762007440862,-500.0,0.00024972,2]
[392827216,1762007440872,-500.0,0.00024972,2]
[392827217,1762007440882,-500.0,0.00024972,2]
[392827218,1762007440892,-500.0,0.00024972,2]
[392827219,1762007440901,-500.0,0.00024972,2]
[392827220,1762007440910,-500.0,0.00024972,2]
[392827221,1762007440919,-500.0,0.00024972,2]
[392827222,1762007440931,-500.0,0.00024972,2]
[392827223,1762007440940,-500.0,0.00024972,2]
[392827224,1762007440949,-500.0,0.00024972,2]
[392827225,1762007440959,-500.0,0.00024972,2]
[392827226,1762007440970,-500.0,0.00024972,2]
[392827227,1762007440979,-500.0,0.00024972,2]
[392827228,1762007440988,-500.0,0.00024972,2]
[392827229,1762007440998,-106880.35927595,0.00025,2]
[392827230,1762007441034,160.0,0.00029546,120]
[392827231,1762007442203,5000.0,0.00024,2]
[392827232,1762007442393,160.0,0.00031024,120]
[392827233,1762007442891,-299.99999997,0.000244,2]
[392827240,1762007443516,-1247.89798495,0.00025,2]
[392827242,1762007443528,-408.0,0.00025,2]
[392827249,1762007443582,-4164.06764004,0.00025,2]
[392827251,1762007443592,-1875.29632442,0.00025,2]
[392827253,1762007443603,-274.70367558,0.00025,2]
[392827258,1762007443641,-5717.47153802,0.00025,2]
[392827266,1762007443981,160.0,0.00032575,120]
[392827272,1762007453768,-263.14320986,0.000244,2]
[392827273,1762007468105,-36.85679014,0.000244,2]
[392827274,1762007468127,-138.45232142,0.000244,2]
[392827275,1762007483075,-161.54767858,0.000244,2]
[392827276,1762007483096,-152.08678166,0.000244,2]
[392827277,1762007487033,-196.37,0.000244,2]
[392827278,1762007494110,500.0,0.00032877,120]
[392827279,1762007513159,-103.63,0.000244,2]
[392827280,1762007513181,-300.0,0.000244,2]
[392827281,1762007513201,-44.36916469,0.000244,2]
[392827282,1762007517432,-224.96728295,0.000244,2]
[392827283,1762007543173,-30.66355236,0.000244,2]
[392827284,1762007543195,-300.0,0.000244,2]
[392827285,1762007543217,-161.80727306,0.000244,2]
[392827287,1762007560157,210.1605417,0.00038203,120]
[392827288,1762007618122,-163.57254089,0.000244,2]
[392827289,1762007621025,-136.42745911,0.000244,2]
[392827290,1762007621046,-56.44927424,0.0002479,2]
[392827291,1762007622917,-167.90496846,0.000244,2]
[392827292,1762007625347,-132.09503154,0.000244,2]
[392827293,1762007625370,-36.42745911,0.0002479,2]
[392827294,1762007630010,-76.5633599,0.0002479,2]
[392827295,1762007630031,-214.45195192,0.0002479,2]
[392827296,1762007631605,-500.0,0.0002479,2]
[392827298,1762007650186,-235.2532903,0.000244,2]
[392827299,1762007653361,-64.7467097,0.000244,2]
[392827300,1762007653383,-189.27853988,0.000244,2]
[392827301,1762007655178,-110.72146012,0.000244,2]
[392827302,1762007655201,-119.00356147,0.000244,2]
[392827303,1762007657246,-162.49636516,0.000244,2]
[392827304,1762007660709,-18.50007337,0.000244,2]
[392827305,1762007660731,-304.70042667,0.0002479,2]
[392827306,1762007664155,-307.12326665,0.0002479,2]
[392827307,1762007666218,-300.0,0.000244,2]
[392827308,1762007666239,-130.60365295,0.0002479,2]
[392827309,1762007669003,-276.52831285,0.0002479,2]
[392827310,1762007670735,-375.82511611,0.0002479,2]
[392827311,1762007672505,-355.41389615,0.0002479,2]
[392827313,1762007679159,-348.81391947,0.0002479,2]
[392827314,1762007680663,-582.66278515,0.0002479,2]
[392827317,1762007684705,-509.0697,0.0002479,2]
[392827329,1762007724306,151.0,0.00038195,120]
[392827330,1762007724912,151.0,0.00038195,120]
[392827331,1762007729121,161.0,0.00025534,120]
[392827333,1762007730360,161.0,0.00026811,120]
[392827334,1762007739248,-353.62210424,0.0002479,2]
[392827335,1762007739271,-455.1020039,0.000248,2]
[392827336,1762007742197,-44.8979961,0.000248,2]
[392827337,1762007742220,-262.70447023,0.000248,2]
[392827338,1762007747391,187111.44678853,0.00038195,30]
[392827340,1762007764285,-37.29552977,0.000248,2]
[392827341,1762007764308,-252.05550831,0.00024845,2]
[392827342,1762007764337,-127.06178544,0.00024899,2]
[392827343,1762007768529,-295.87666873,0.00024899,2]
[392827344,1762007777189,-462.05601572,0.00024888,2]
[392827345,1762007782262,-162.88488126,0.00024888,2]
[392827346,1762007786086,-315.8224616,0.00024788,2]
[392827347,1762007790055,-569.67903736,0.00024788,2]
[392827348,1762007798063,-230.82507551,0.00024788,2]
[392827349,1762007798086,-100.35781143,0.000248,2]
[392827350,1762007807662,-73.11109552,0.000248,2]
[392827351,1762007807685,-226.22762231,0.00024888,2]
[392827352,1762007810981,-161.62,0.00024888,2]
[392827353,1762007816278,-247.11059673,0.00024888,2]
[392827354,1762007816300,-7.1948192,0.00024899,2]
[392827355,1762007821016,-96.92851207,0.00024899,2]
[392827356,1762007821039,-57.29641793,0.00024899,2]
[392827357,1762007836923,-407.68988271,0.0002465,2]
[392827358,1762007840848,-0.84046322,0.0002465,2]
[392827359,1762007840869,-172.90399868,0.0002489,2]
[392827360,1762007840889,-300.0,0.00024899,2]
[392827361,1762007840911,-1206.81929961,0.000249,2]
[392827362,1762007847235,-1366.53543205,0.00024403,2]
[392827363,1762007850585,5000.0,0.00024,2]
[392827364,1762007858144,-540.94779082,0.00024403,2]
[392827365,1762007858385,3741.43145116,0.00024,2]
[392827366,1762007862102,-177.0,0.00024403,2]
[392827367,1762007864684,-304.48714898,0.00024403,2]
[392827369,1762007873310,5000.0,0.00024,2]
[392827370,1762007879995,188.79,0.00016244,2]
[392827371,1762007881072,735.79256491,0.00024,2]
[392827372,1762007895882,107.59625017,0.00024,2]
[392827373,1762008018006,151.70926346,0.00038195,120]
[392827375,1762008049541,398.0,0.0002499,120]
[392827376,1762008050055,398.0,0.0002498,120]
[392827377,1762008050499,398.0,0.0002497,120]
[392827378,1762008071820,10000.0,0.00023,2]
[392827379,1762008078206,483.1,0.00038195,120]
[392827380,1762008081979,479.1,0.00032877,120]
[392827381,1762008091376,10000.0,0.00023,2]
[392827382,1762008097319,156.0,0.000328,120]
[392827383,1762008105829,5000.0,0.00023,2]
[392827384,1762008105857,5000.0,0.00023,2]
[392827386,1762008109672,999.0,0.00022969,2]
[392827399,1762008249923,1384.868904,0.00022932,2]
[392827400,1762008282543,5000.0,0.00023,2]
[392827402,1762008305143,1167.58521023,0.00023,2]
[392827403,1762008306281,387.80403169,0.00038195,120]
[392827404,1762008306814,151.0,0.00038195,120]
[392827405,1762008307451,156.587,0.00038195,120]
[392827406,1762008308073,162.380719,0.00038195,120]
[392827409,1762008308689,168.3888056,0.00038195,120]
[392827410,1762008309275,400.0,0.00038195,30]
[392827411,1762008309360,174.61919141,0.00038195,120]
[392827412,1762008309888,414.8,0.00038195,30]
[392827413,1762008309993,181.08010149,0.00038195,120]
[392827414,1762008310523,430.1476,0.00038195,30]
[392827415,1762008310639,187.78006525,0.00038195,120]
[392827416,1762008311257,446.0630612,0.00038195,30]
[392827417,1762008311287,194.72792766,0.00038195,120]
[392827418,1762008311665,289.7287805,0.00038195,120]
[392827419,1762008311870,201.93286099,0.00038195,120]
[392827420,1762008311900,462.56739446,0.00038195,30]
[392827421,1762008312489,209.40437684,0.00038195,120]
[392827422,1762008312521,479.68238806,0.00038195,30]
[392827423,1762008313090,497.43063642,0.00038195,30]
[392827424,1762008313120,217.15233878,0.00038195,120]
[392827425,1762008314245,225.18697532,0.00038195,120]
[392827426,1762008314934,233.51889341,0.00038195,120]
[392827428,1762008407765,1296.7,0.0003287,120]
[392827429,1762008417178,151.0,0.00038195,20]
[392827430,1762008417822,151.0,0.00038195,20]
[392827431,1762008418462,151.0,0.00038195,20]
[392827432,1762008419101,151.0,0.00038195,20]
[392827433,1762008420215,151.0,0.00038195,20]
[392827434,1762008420872,151.0,0.00038195,20]
[392827435,1762008421482,151.0,0.00038195,20]
[392827436,1762008422245,151.0,0.00038195,20]
[392827437,1762008422892,151.0,0.00038195,20]
[392827438,1762008423568,151.0,0.00038195,20]
[392827439,1762008424137,151.0,0.00038195,20]
[392827440,1762008424804,151.0,0.00038195,20]
[392827441,1762008425399,151.0,0.00038195,20]
[392827442,1762008426029,151.0,0.00038195,20]
[392827443,1762008426719,151.0,0.00038195,20]
[392827444,1762008427335,151.0,0.00038195,20]
[392827445,1762008427951,151.0,0.00038195,20]
[392827446,1762008428562,151.0,0.00038195,20]
[392827447,1762008429204,151.0,0.00038195,20]
[392827448,1762008429798,151.0,0.00038195,20]
[392827449,1762008459142,3936.5112781,0.00022961,2]
[392827453,1762008556868,151.0,0.00038195,20]
[392827454,1762008557573,151.0,0.00038195,20]
[392827455,1762008558067,151.0,0.00038195,20]
[392827456,1762008608736,231.36082168,0.00038193,120]
[392827457,1762008611321,404.30111595,0.00038193,30]
[392827458,1762008613598,201.15282421,0.00038193,20]
[392827467,1762008632643,-753.71,0.00023268,2]
[392827468,1762008632653,-631.29370898,0.00023268,2]
[392827469,1762008632663,-272.71638028,0.00023269,2]
[392827470,1762008632673,-500.0,0.000233,2]
[392827471,1762008632682,-1102.4117265,0.0002389,2]
[392827472,1762008632692,-364.9650436,0.00023949,2]
[392827473,1762008632702,-500.0,0.00023973,2]
[392827474,1762008632712,-1200.0,0.00023988,2]
[392827475,1762008632721,-513.71244081,0.00023988,2]
[392827476,1762008632731,-200.0,0.00023988,2]
[392827477,1762008632740,-500.0,0.00023988,2]
[392827478,1762008632750,-162.47904137,0.00023988,2]
[392827479,1762008632760,-500.0,0.00023988,2]
[392827480,1762008632769,-500.0,0.00023988,2]
[392827481,1762008632779,-500.0,0.00023988,2]
[392827482,1762008632789,-500.0,0.00023988,2]
[392827483,1762008632798,-500.0,0.00023988,2]
[392827484,1762008632807,-377.68085734,0.00023988,2]
[392827485,1762008632818,-354.33364864,0.00023988,2]
[392827486,1762008632832,-145.66635136,0.00023988,2]
[392827487,1762008632841,-250.33766383,0.00023988,2]
[392827500,1762008638577,-249.66233617,0.00023988,2]
[392827502,1762008638586,-500.0,0.00023988,2]
[392827504,1762008638596,-254.23966484,0.00023988,2]
[392827506,1762008638608,-245.76033516,0.00023988,2]
[392827508,1762008638618,-305.38555754,0.00023988,2]
[392827513,1762008638659,-194.61444246,0.00023988,2]
[392827516,1762008638669,-500.0,0.00023988,2]
[392827518,1762008638680,-500.0,0.00023988,2]
[392827519,1762008638689,-500.0,0.00023988,2]
[392827523,1762008638701,-148.4655075,0.00023988,2]
[392827633,1762008641477,-0.02036894,0.00023988,2]
[392827647,1762008646684,-351.51412356,0.00023988,2]
[392827648,1762008646694,-500.0,0.00023988,2]
[392827649,1762008646704,-500.0,0.00023988,2]
[392827650,1762008646714,-434.66130695,0.00023988,2]
[392827651,1762008646725,-500.0,0.00023988,2]
[392827652,1762008646736,-500.0,0.00023988,2]
[392827653,1762008646746,-500.0,0.00023988,2]
[392827654,1762008646756,-500.0,0.00023988,2]